bitfinex/quotes_ETHUSD_20250725
["timestamp","ask_amount","ask_price","bid_price","bid_amount"]
[1753450546501,3.6844,3714.5,3714.4,1e-08]
[1753450547010,0.6844,3714.5,3714.4,0.46520001]
[1753450547422,0.1344,3714.5,3714.4,0.89480001]
[1753450547594,0.1344,3714.5,3714.4,0.46520001]
[1753450547796,0.1344,3714.5,3714.4,0.89480001]
[1753450548105,0.1344,3714.5,3714.4,1e-08]
[1753450548310,0.6844,3714.5,3714.4,1e-08]
[1753450549240,0.6844,3714.5,3714.4,0.46520001]
[1753450549598,6.37655237,3714.5,3714.4,1e-08]
[1753450551125,3.1344,3714.5,3714.4,0.89480001]
[1753450551504,3.0,3714.5,3714.4,0.89480001]
[1753450551709,3.0,3714.5,3714.4,1e-08]
[1753450552096,3.0,3714.5,3714.4,0.46520001]
[1753450552296,3.0,3714.5,3714.4,0.89480001]
[1753450552712,3.0,3714.5,3714.4,1e-08]
[1753450553334,6.24215237,3714.5,3714.4,1e-08]
[1753450553528,3.55,3714.5,3714.4,1e-08]
[1753450553710,6.24215237,3714.5,3714.4,1e-08]
[1753450553916,7.65018744,3714.5,3714.4,1e-08]
[1753450554102,3.55,3714.5,3714.4,0.46520001]
[1753450554295,6.24215237,3714.5,3714.4,1e-08]
[1753450554504,11.59005237,3714.5,3714.4,1e-08]
[1753450554806,12.37085237,3714.5,3714.4,1e-08]
[1753450555335,7.02295237,3714.5,3714.4,1e-08]
[1753450555545,11.43495237,3714.5,3714.4,1e-08]
[1753450555743,0.1344,3714.6,3714.4,1e-08]
[1753450555744,0.1344,3714.6,3714.4,2.69222486]
[1753450555899,0.7765,3715.7,3714.5,0.8948]
[1753450556099,2.69135536,3715.6,3714.6,3.18415482]
[1753450556301,0.7765,3715.7,3714.6,0.4652]
[1753450556504,2.69125975,3715.8,3714.7,1.08627007]
[1753450556842,1.15642918,3716.4,3714.9,3.49943887]
[1753450557004,2.69099936,3716.1,3715.1,2.69171758]
[1753450557204,1.15642918,3716.4,3715.2,0.8948]
[1753450557412,0.55,3715.8,3715.2,3.58643336]
[1753450557613,0.55,3715.8,3715.2,0.4652]
[1753450557836,3.55,3715.6,3715.2,0.4652]
[1753450558048,3.55,3715.8,3715.3,0.4652]
[1753450558229,0.55,3715.6,3715.3,0.4652]
[1753450558435,3.0,3715.5,3715.3,0.4652]
[1753450558639,0.55,3715.6,3715.3,0.4652]
[1753450559033,3.0,3715.5,3715.3,0.4652]
[1753450559236,3.55,3715.6,3715.3,0.4652]
[1753450559420,0.55,3715.6,3715.3,0.4652]
[1753450559742,1.15642918,3716.4,3715.4,0.921715]
[1753450559916,1.15642918,3716.4,3715.5,0.4652]
[1753450560111,1.15642918,3716.4,3715.6,1.2213]
[1753450560348,1.15642918,3716.4,3715.7,0.92171282]
[1753450560551,1.15642918,3716.4,3716.1,2.69098743]
[1753450560854,1.15642918,3716.4,3716.2,0.8948]
[1753450561351,1.15642918,3716.4,3715.7,0.4652]
[1753450561352,3.0,3716.3,3715.7,0.4652]
[1753450561570,1.15642918,3716.4,3716.1,2.69093868]
[1753450561846,1.91442918,3716.4,3716.1,0.4296]
[1753450562049,1.15642918,3716.4,3716.1,0.4652]
[1753450562428,1.15642918,3716.4,3716.2,0.8948]
[1753450562659,1.15642918,3716.4,3716.3,0.8948]
[1753450563438,1.15642918,3716.4,3716.2,0.7834]
[1753450563439,1.15642918,3716.4,3716.2,4.404]
[1753450563635,1.15642918,3716.4,3716.3,3.58564842]
[1753450563820,1.15642918,3716.4,3715.8,3.98229794]
[1753450564025,1.15642918,3716.4,3715.9,4.402]
[1753450564223,1.15642918,3716.4,3716.0,2.69104231]
[1753450564441,1.15642918,3716.4,3716.0,0.8948]
[1753450564645,1.15642918,3716.4,3716.1,5.2968]
[1753450564868,1.15642918,3716.4,3716.2,0.4652]
[1753450565171,1.15642918,3716.4,3716.1,4.403]
[1753450565464,1.15642918,3716.4,3716.3,0.8948]
[1753450565630,1.15642918,3716.4,3716.3,3.58564842]
[1753450565975,1.15642918,3716.4,3716.3,3.72004842]
[1753450566172,0.002,3716.8,3716.3,3.72004842]
[1753450566173,0.002,3716.8,3716.7,2.69055882]
[1753450566325,0.002,3716.8,3716.7,2.7174644]
[1753450566533,0.002,3716.8,3716.7,3.56947571]
[1753450566839,0.002,3716.8,3716.7,4.48647013]
[1753450567053,0.002,3716.8,3716.7,4.51337571]
[1753450567237,0.002,3716.8,3716.7,4.48647013]
[1753450567456,0.002,3716.8,3716.7,8.88547013]
[1753450567655,0.002,3716.8,3716.7,1.0783]
[1753450567976,0.002,3716.8,3716.4,0.8241]
[1753450568134,2.69248643,3716.8,3716.4,0.8241]
[1753450568476,0.002,3716.8,3716.5,4.896]
[1753450568675,0.002,3716.8,3716.6,0.9439]
[1753450568832,0.002,3716.8,3716.7,2.69055882]
[1753450569026,0.002,3716.8,3716.7,2.7174644]
[1753450569227,0.002,3716.8,3716.7,1.7642]
[1753450569427,0.002,3716.8,3716.7,1.3183]
[1753450569670,0.002,3716.8,3716.7,4.399]
[1753450570469,5.69248643,3716.8,3716.7,4.399]
[1753450570634,3.002,3716.8,3716.7,4.399]
[1753450571087,3.002,3716.8,3716.7,4.897]
[1753450571261,3.002,3716.8,3716.7,4.399]
[1753450571836,3.002,3716.8,3716.7,7.58755882]
[1753450572263,3.002,3716.8,3716.7,8.03345882]
[1753450572462,3.002,3716.8,3716.7,7.58755882]
[1753450572667,3.002,3716.8,3716.7,4.897]
[1753450573168,3.002,3716.8,3716.7,4.401]
[1753450573543,0.002,3716.8,3716.2,0.8203]
[1753450573743,0.8522,3716.8,3715.7,0.7886]
[1753450574069,0.002,3716.8,3715.8,5.3419]
[1753450574285,0.002,3716.8,3716.7,2.69055882]
[1753450574583,0.002,3716.8,3716.4,2.69077176]
[1753450574733,0.552,3716.8,3715.9,1.7325]
[1753450574939,0.002,3716.8,3716.0,4.4]
[1753450575166,3.0,3716.6,3716.1,0.88235941]
[1753450575367,3.0,3716.6,3716.2,4.399]
[1753450575562,0.002,3716.8,3716.2,4.399]
[1753450575766,3.0,3716.6,3716.2,4.399]
[1753450576137,3.0,3716.6,3715.4,0.4459]
[1753450576138,1.4602,3716.5,3716.3,4.398]
[1753450576269,1.4602,3716.5,3715.6,2.69134121]
[1753450576270,2.69088761,3716.3,3715.6,2.69134121]
[1753450576474,0.55,3716.4,3715.7,4.396]
[1753450576673,2.69090177,3716.3,3715.6,2.69131085]
[1753450576871,2.69090177,3716.3,3715.7,4.396]
[1753450576872,3.0,3716.0,3715.7,4.396]
[1753450577396,3.0,3716.2,3715.8,0.9439]
[1753450577554,0.002,3716.8,3715.8,0.4459]
[1753450577755,3.0,3716.1,3715.9,0.498]
[1753450577983,0.1344,3716.2,3715.7,7.08723785]
[1753450578158,0.1344,3716.2,3715.7,4.396]
[1753450578358,3.0,3716.1,3715.3,0.4459]
[1753450578562,0.1344,3715.9,3715.4,7.21987508]
[1753450578759,0.1344,3715.9,3715.4,4.394]
[1753450579090,0.1344,3715.9,3715.4,7.08548224]
[1753450579263,3.1344,3715.9,3715.3,0.1344]
[1753450579584,3.1344,3715.9,3714.8,6.464]
[1753450579585,0.55,3715.3,3714.8,6.464]
[1753450579784,0.55,3715.3,3714.5,0.1344]
[1753450579785,2.69190791,3714.9,3714.5,0.1344]
[1753450579986,2.69190791,3714.9,3714.6,4.394]
[1753450580187,0.55,3715.3,3714.6,4.394]
[1753450580393,0.1344,3714.9,3714.7,0.498]
[1753450580696,0.1344,3714.9,3714.8,0.9439]
[1753450580993,3.0,3715.8,3715.6,2.6913152]
[1753450581201,2.69069277,3716.6,3715.0,0.781]
[1753450581202,7.04,3716.7,3715.8,2.6912105]
[1753450581405,0.8331,3717.0,3716.2,2.69091114]
[1753450581406,7.042,3716.8,3716.2,2.69091114]
[1753450581629,0.1344,3716.5,3716.3,4.395]
[1753450581766,0.002,3716.8,3716.3,4.395]
[1753450581970,0.1344,3716.6,3716.4,4.395]
[1753450582274,2.69071819,3716.5,3715.6,2.69134481]
[1753450582485,2.69071819,3716.5,3713.8,0.55]
[1753450582486,0.808,3716.3,3715.2,9.15361773]
[1753450582666,0.808,3716.3,3715.3,4.395]
[1753450582667,0.1344,3715.6,3715.3,4.395]
[1753450583010,0.9157,3716.2,3715.6,2.69130101]
[1753450583011,0.1344,3715.7,3715.6,2.69130101]
[1753450583170,0.8166,3716.3,3715.2,6.462]
[1753450583507,0.002,3716.8,3716.2,2.69092083]
[1753450583720,0.002,3716.8,3716.0,0.8102]
[1753450583721,0.1344,3716.6,3716.5,2.69070361]
[1753450583924,0.002,3716.8,3716.5,0.498]
[1753450584088,0.002,3716.8,3716.6,0.9439]
[1753450584295,0.002,3716.8,3716.7,2.69055882]
[1753450584482,0.002,3716.8,3716.7,3.63445882]
[1753450585403,0.002,3716.8,3716.7,8.02945882]
[1753450585777,0.002,3716.8,3716.7,4.893]
[1753450586021,0.002,3716.8,3716.7,7.58355882]
[1753450586200,0.002,3716.8,3716.7,4.395]
[1753450586405,0.002,3716.8,3716.7,7.08555882]
[1753450586716,0.002,3716.8,3716.7,4.395]
[1753450587075,0.002,3716.8,3716.7,7.08555882]
[1753450587415,0.002,3716.8,3716.7,8.3055547]
[1753450587599,0.002,3716.8,3716.7,6.19529588]
[1753450587924,0.002,3716.8,3716.7,5.11699588]
[1753450588076,0.002,3716.8,3716.7,7.57355882]
[1753450588281,0.002,3716.8,3716.7,8.15385882]
[1753450588625,0.002,3716.8,3716.7,4.384]
[1753450588858,3.0,3716.6,3715.8,0.498]
[1753450589150,0.002,3716.8,3715.9,4.385]
[1753450589453,0.002,3716.8,3716.2,2.69086372]
[1753450589657,0.002,3716.8,3716.4,2.69077438]
[1753450589955,0.002,3716.8,3716.7,2.69055882]
[1753450590308,0.002,3716.8,3716.7,3.18855882]
[1753450591027,0.002,3716.8,3716.7,3.6613644]
[1753450591344,0.002,3716.8,3716.7,3.63445882]
[1753450591553,0.002,3716.8,3716.7,4.81084958]
[1753450592209,1e-08,3716.8,3716.7,4.81084958]
[1753450592414,1e-08,3716.8,3716.7,5.608844]
[1753450592646,1e-08,3716.8,3716.7,9.991844]
[1753450592960,1e-08,3716.8,3716.7,9.992844]
[1753450594747,1e-08,3716.8,3716.7,9.991844]
[1753450595348,1e-08,3716.8,3716.7,5.608844]
[1753450595651,1e-08,3716.8,3716.7,9.990844]
[1753450595847,1e-08,3716.8,3716.7,12.990844]
[1753450596210,1e-08,3716.8,3716.7,8.608844]
[1753450596413,1e-08,3716.8,3716.7,12.987844]
[1753450598453,1e-08,3716.8,3716.7,8.608844]
[1753450598653,1e-08,3716.8,3716.7,13.119244]
[1753450599013,1e-08,3716.8,3716.7,8.743244]
[1753450599215,1e-08,3716.8,3716.7,10.117244]
[1753450600520,1e-08,3716.8,3716.7,10.115244]
[1753450601659,1e-08,3716.8,3716.7,13.115244]
[1753450602354,1e-08,3716.8,3716.7,8.743244]
[1753450602583,1e-08,3716.8,3716.7,5.743244]
[1753450602712,1e-08,3716.8,3716.7,10.112244]
[1753450602917,1e-08,3716.8,3716.7,12.958244]
[1753450603116,1e-08,3716.8,3716.7,10.112244]
[1753450603361,1e-08,3716.8,3716.7,9.666344]
[1753450604075,1e-08,3716.8,3716.7,2.82495882]
[1753450604076,0.45280001,3716.8,3716.7,2.82495882]
[1753450604368,2.69063122,3716.6,3715.8,0.001]
[1753450604523,0.7563,3716.7,3715.9,4.369]
[1753450604857,0.55,3716.3,3715.9,4.369]
[1753450605152,0.7563,3716.7,3715.9,4.369]
[1753450605153,3.0,3716.0,3715.9,4.369]
[1753450605356,3.942,3716.0,3715.9,4.369]
[1753450606456,8.33656566,3716.0,3715.9,4.369]
[1753450606760,5.0955,3716.0,3715.9,4.369]
[1753450607064,4.7013,3716.0,3715.9,4.369]
[1753450607221,3.0,3715.9,3715.8,0.001]
[1753450607426,3.942,3715.9,3715.8,4.366]
[1753450607852,7.18313808,3715.9,3715.8,4.366]
[1753450608468,7.99993808,3715.9,3715.8,0.001]
[1753450610346,5.3088,3715.9,3715.8,0.001]
[1753450610546,7.99993808,3715.9,3715.8,0.001]
[1753450611308,7.99993808,3715.9,3715.8,1e-08]
[1753450612678,7.99993808,3715.9,3714.4,1e-08]
[1753450612679,4.03135237,3714.5,3714.4,1e-08]
[1753450612867,7.03135237,3714.5,3714.4,1e-08]
[1753450613392,7.97335237,3714.5,3714.4,1e-08]
[1753450613894,3.7892,3714.5,3714.4,1e-08]
[1753450614264,8.10775237,3714.5,3714.4,1e-08]
[1753450614461,5.4156,3714.5,3714.4,1e-08]
[1753450614991,0.55,3714.4,3712.9,4.365]
[1753450615205,3.55,3714.2,3712.9,4.365]
[1753450615374,0.55,3714.0,3712.9,4.365]
[1753450615580,0.6844,3713.7,3712.9,4.365]
[1753450615778,1.4353,3713.7,3712.9,4.365]
[1753450615977,2.91503,3713.7,3712.9,4.365]
[1753450616182,4.4353,3713.7,3712.9,4.8527]
[1753450616878,4.4353,3713.7,3713.0,0.1344]
[1753450617301,3.0,3713.7,3713.3,0.4887]
[1753450617674,3.0,3713.7,3713.6,0.9383]
[1753450617879,3.0,3713.7,3713.6,0.001]
[1753450619468,3.0,3713.7,3713.6,0.4887]
[1753450619988,3.0,3713.7,3713.6,0.001]
[1753450620392,6.00617231,3713.7,3713.6,0.001]
[1753450620605,7.49817231,3713.7,3713.6,0.001]
[1753450620808,8.31017231,3713.7,3713.6,0.001]
[1753450621109,4.67544,3713.7,3713.6,0.001]
[1753450621466,7.36817231,3713.7,3713.6,0.001]
[1753450621803,2.69353014,3712.6,3711.2,1.2824]
[1753450622102,6.24353014,3712.6,3712.5,1e-08]
[1753450622403,7.31993014,3712.6,3712.5,1e-08]
[1753450623106,8.07673014,3712.6,3712.5,1e-08]
[1753450623470,16.3344732,3712.6,3712.5,1e-08]
[1753450623663,0.55,3712.2,3710.4,0.4877]
[1753450623970,0.55,3712.2,3707.7,6.194]
[1753450623971,3.0,3710.1,3709.4,0.4877]
[1753450624167,5.69535092,3710.1,3709.4,0.4877]
[1753450624364,5.69535092,3710.1,3709.2,0.4496]
[1753450624365,3.0,3709.6,3709.2,0.4496]
[1753450624603,3.0,3709.6,3709.1,4.365]
[1753450624604,3.1344,3709.6,3709.1,4.5002]
[1753450624815,0.1344,3709.6,3709.0,1.3029]
[1753450625112,0.1344,3709.6,3709.2,2.6959858]
[1753450625292,0.1344,3709.6,3709.0,3.64654231]
[1753450625494,0.1344,3709.6,3709.2,2.69597745]
[1753450625668,0.1344,3709.6,3709.0,1.4381]
[1753450625863,3.7937,3710.0,3708.7,4.8136]
[1753450625864,0.55,3709.5,3708.7,0.4877]
[1753450626188,0.1352,3708.9,3708.7,3.18406023]
[1753450626428,0.1352,3708.9,3708.7,0.4877]
[1753450626631,0.1352,3708.9,3708.8,0.4947]
[1753450626836,0.1352,3708.9,3708.8,0.9387]
[1753450627048,0.1352,3708.9,3708.8,3.6349899]
[1753450627250,2.69455343,3711.2,3708.8,3.6349899]
[1753450627251,3.48767387,3710.5,3709.7,2.69556911]
[1753450627547,3.4688,3711.1,3709.8,0.4947]
[1753450627548,3.48729656,3711.0,3709.8,0.4947]
[1753450627750,3.0,3710.6,3709.9,2.69542963]
[1753450627914,0.1344,3710.2,3709.9,2.69542963]
[1753450628112,0.1344,3710.2,3709.8,4.8607]
[1753450628113,0.1344,3710.2,3710.0,0.4947]
[1753450628309,0.7926,3711.0,3710.0,1.43821]
[1753450628523,0.1344,3710.7,3710.1,0.6291]
[1753450628931,0.7926,3711.0,3709.9,0.8013]
[1753450629136,0.7926,3711.0,3707.7,8.46120289]
[1753450629137,0.55,3709.8,3709.1,0.4947]
[1753450629346,0.1344,3709.5,3709.1,0.4947]
[1753450629520,0.7984,3710.0,3709.0,4.809]
[1753450629846,0.55,3709.2,3708.5,0.444]
[1753450630030,0.55,3709.2,3708.4,4.378]
[1753450630031,3.0,3708.7,3708.4,4.378]
[1753450630236,0.1352,3708.6,3708.1,0.1352]
[1753450630407,0.1352,3708.6,3707.8,0.8156]
[1753450630408,2.83199653,3708.2,3707.8,4.381]
[1753450630609,0.1352,3708.2,3707.8,4.381]
[1753450631035,0.1352,3708.2,3708.1,2.69679889]
[1753450631362,0.1352,3708.2,3707.8,4.381]
[1753450631650,0.55,3708.1,3707.3,0.4947]
[1753450631835,0.30065825,3708.2,3707.8,2.69701709]
[1753450631836,0.1352,3707.9,3707.8,2.69701709]
[1753450632153,0.1352,3708.4,3707.8,1.9017]
[1753450632342,3.0,3708.4,3707.4,4.8757]
[1753450632679,0.1352,3708.2,3707.6,0.1352]
[1753450632815,0.1352,3708.3,3708.2,2.69666099]
[1753450633171,0.1352,3708.3,3708.0,2.69680255]
[1753450633309,0.1352,3708.3,3707.7,0.4947]
[1753450633310,0.1352,3708.3,3707.8,2.69700877]
[1753450633516,2.69679889,3708.1,3707.4,4.381]
[1753450633827,0.1352,3707.8,3707.4,4.381]
[1753450634154,0.55,3708.3,3707.8,2.69699503]
[1753450634324,0.7633,3708.7,3707.9,0.9387]
[1753450634525,0.7634,3709.2,3708.0,7.57257162]
[1753450634725,0.9613,3710.2,3708.1,0.96566798]
[1753450635037,0.9613,3710.2,3708.0,4.381]
[1753450635038,2.6955631,3709.8,3708.3,2.69663061]
[1753450635239,0.1352,3708.6,3708.2,8.01940531]
[1753450635431,0.1352,3708.6,3708.2,4.8787]
[1753450635630,0.1352,3708.6,3708.4,2.69657118]
[1753450635819,0.1323411,3708.6,3708.5,2.69650802]
[1753450636017,0.1323411,3708.6,3708.4,0.4947]
[1753450636336,3.55,3708.5,3707.7,0.4947]
[1753450636534,3.0,3708.1,3707.8,4.391]
[1753450636734,3.0,3708.1,3707.4,0.1352]
[1753450636939,0.1352,3707.6,3707.2,0.499]
[1753450637147,5.69738084,3707.3,3707.2,0.499]
[1753450637324,5.83258084,3707.3,3707.2,0.499]
[1753450637523,3.50424706,3707.3,3707.2,0.499]
[1753450637747,6.7516279,3707.3,3707.2,0.499]
[1753450638122,4.05424706,3707.3,3707.2,0.499]
[1753450638419,6.38258084,3707.3,3707.2,0.499]
[1753450639160,3.1352,3707.3,3707.2,0.499]
[1753450639535,3.6852,3707.3,3707.2,0.499]
[1753450639721,8.13288084,3707.3,3707.2,0.499]
[1753450640278,2.6982688,3706.1,3705.4,0.001]
[1753450640569,0.789,3706.2,3705.4,0.001]
[1753450640570,3.1352,3705.8,3705.4,0.001]
[1753450640767,3.48718238,3706.2,3705.4,0.001]
[1753450640768,0.55,3706.1,3705.4,0.001]
[1753450640976,3.6852,3705.5,3705.4,0.001]
[1753450641267,3.38389113,3705.5,3705.4,0.001]
[1753450641442,0.6852,3705.5,3705.4,0.001]
[1753450641642,12.65404113,3705.5,3705.4,0.001]
[1753450641842,12.65404113,3705.5,3705.4,1e-08]
[1753450642475,12.65404113,3705.5,3703.6,0.1362]
[1753450642476,7.03989249,3704.4,3704.3,1e-08]
[1753450642767,11.43089249,3704.4,3704.3,1e-08]
[1753450643070,8.13639249,3704.4,3704.3,1e-08]
[1753450643270,12.56439249,3704.4,3704.3,1e-08]
[1753450643487,4.0152027,3703.7,3703.6,0.001]
[1753450643773,4.0152027,3703.7,3701.8,0.4947]
[1753450643774,2.7001485,3703.5,3701.8,0.4947]
[1753450644001,1.3511,3703.4,3701.9,0.444]
[1753450644146,0.55,3703.3,3702.0,1.2619]
[1753450644351,0.55,3703.3,3702.9,2.70057432]
[1753450644527,0.55,3703.9,3703.0,0.9387]
[1753450645060,0.55,3703.9,3703.1,0.9387]
[1753450645291,0.55,3703.9,3703.2,0.4947]
[1753450645426,0.55,3703.7,3702.6,4.467]
[1753450645632,0.55,3703.7,3701.9,0.4947]
[1753450645633,0.55,3702.7,3701.9,0.4947]
[1753450645827,0.55,3702.7,3701.7,0.444]
[1753450646063,2.70123704,3702.1,3701.1,2.70187929]
[1753450646366,2.70123704,3702.1,3700.5,6.475]
[1753450646367,0.55,3701.9,3700.7,0.444]
[1753450646525,3.03629912,3703.5,3700.7,0.444]
[1753450646526,0.7709,3703.2,3701.1,0.444]
[1753450646729,4.474,3704.0,3701.1,0.444]
[1753450646730,0.55,3703.1,3701.3,0.7652]
[1753450647052,0.55,3703.1,3701.2,0.52171826]
[1753450647053,0.804,3703.9,3701.8,3.0]
[1753450647228,0.14096898,3705.2,3701.8,3.0]
[1753450647229,0.804,3704.4,3702.0,3.0]
[1753450647429,0.804,3704.4,3702.1,2.08377132]
[1753450647667,3.0,3703.6,3702.2,11.9077]
[1753450647851,0.55,3704.2,3702.3,4.9847]
[1753450648054,3.25138851,3701.8,3701.7,0.001]
[1753450648263,3.25138851,3701.8,3698.4,2.8448013]
[1753450648264,0.2844,3700.7,3698.4,0.14097245]
[1753450648470,0.2844,3700.7,3698.5,0.9387]
[1753450648471,0.55,3700.5,3698.5,0.9387]
[1753450648635,0.55,3700.2,3699.2,0.81104]
[1753450648975,0.9613,3700.6,3699.3,4.602]
[1753450649185,3.0,3700.4,3699.4,4.602]
[1753450649394,0.55,3700.5,3699.4,4.602]
[1753450649674,0.2844,3700.7,3699.4,4.602]
[1753450649675,0.55,3700.6,3699.5,0.9549]
[1753450649900,0.55,3700.6,3699.4,0.7627]
[1753450650035,0.55,3700.6,3691.7,0.27047129]
[1753450650036,0.55,3700.0,3698.7,6.9757]
[1753450650239,0.2844,3700.7,3698.8,0.9387]
[1753450650449,3.55,3700.6,3699.8,2.70284752]
[1753450650683,2.98659532,3700.7,3698.7,6.481]
[1753450650684,3.94050332,3701.0,3700.9,2.70204544]
[1753450650871,3.94050332,3701.0,3700.9,3.64074544]
[1753450651041,3.94050332,3701.0,3700.9,4.621]
[1753450651244,3.94050332,3701.0,3699.6,0.8169]
[1753450651245,3.0,3700.9,3700.2,2.70249732]
[1753450651469,3.0,3701.5,3700.3,7.32345631]
[1753450651677,0.55,3701.0,3700.0,0.4947]
[1753450651882,3.55,3700.4,3699.6,6.484]
[1753450652056,0.55,3700.4,3700.1,4.62]
[1753450652262,0.55,3700.6,3699.6,6.484]
[1753450652493,1.21587253,3700.7,3700.2,4.62]
[1753450652871,1.21587253,3700.7,3700.3,4.619]
[1753450653074,0.55,3700.2,3699.4,2.70313489]
[1753450653371,0.55,3700.5,3699.3,0.4947]
[1753450653566,3.55,3699.9,3699.4,4.618]
[1753450653781,0.1352,3699.4,3699.1,6.486]
[1753450653986,0.55,3700.6,3699.2,0.96573287]
[1753450654170,0.4688,3701.0,3697.4,2.70554044]
[1753450654171,0.1352,3699.6,3698.8,2.70356933]
[1753450654376,2.70453008,3697.5,3697.4,0.001]
[1753450654576,4.4359,3697.5,3697.4,0.001]
[1753450654775,2.70467638,3697.3,3695.9,0.001]
[1753450654993,3.0,3697.4,3692.6,1.0555]
[1753450654994,2.70635994,3695.0,3693.0,2.70777658]
[1753450655193,0.55,3694.8,3694.4,0.1352]
[1753450655512,0.55,3694.8,3692.6,0.2495]
[1753450655513,0.1352,3693.6,3693.5,2.70745904]
[1753450655670,0.1352,3693.6,3693.5,5.50245904]
[1753450655870,3.0,3695.3,3693.5,2.95727459]
[1753450656084,0.1352,3694.1,3693.6,0.74502746]
[1753450656257,0.1352,3694.2,3694.1,2.7070193]
[1753450656607,2.84658217,3696.1,3694.1,6.9393]
[1753450656804,0.14101503,3696.1,3694.2,0.02706946]
[1753450657006,0.14101503,3696.1,3694.3,11.28106872]
[1753450657298,0.14101503,3696.1,3693.3,6.9393]
[1753450657299,0.55,3694.6,3693.3,6.9393]
[1753450657497,0.4954,3695.2,3693.4,11.28707532]
[1753450657701,0.14101503,3696.1,3693.7,2.70731245]
[1753450657702,0.94791503,3696.1,3693.7,2.70731245]
[1753450657902,0.94791503,3696.1,3693.6,0.7693]
[1753450657903,0.14101503,3696.1,3694.3,2.70687274]
[1753450658087,0.14101503,3696.1,3694.4,1.51675526]
[1753450658299,0.14101503,3696.1,3694.5,0.94606726]
[1753450658610,0.14101503,3696.1,3695.4,2.70603988]
[1753450658910,0.14101503,3696.1,3695.7,2.7058375]
[1753450659078,0.14101503,3696.1,3696.0,2.7056277]
[1753450659278,0.06901806,3696.1,3696.0,10.14368397]
[1753450659479,2.70383142,3698.5,3696.8,2.70504194]
[1753450659694,0.783,3698.6,3694.4,0.57068727]
[1753450659695,2.70578234,3695.8,3694.4,0.57068727]
[1753450659894,5.808,3698.4,3693.2,0.4493]
[1753450659895,0.55,3695.5,3693.2,0.4493]
[1753450660197,0.55,3695.5,3693.5,0.4697]
[1753450660372,0.55,3695.3,3694.1,2.70699972]
[1753450660712,2.70621454,3695.2,3694.2,0.4493]
[1753450660865,2.70621454,3695.2,3694.2,4.99]
[1753450660866,3.0,3694.3,3694.2,4.99]
[1753450661213,3.0,3694.3,3693.4,1.2159]
[1753450661214,0.55,3695.0,3694.0,4.993]
[1753450661383,3.03192842,3695.1,3694.0,4.993]
[1753450661565,3.0,3695.5,3694.1,0.02707019]
[1753450661768,2.7064586,3694.9,3694.2,4.991]
[1753450661995,0.4954,3694.9,3693.7,4.99]
[1753450662308,0.4954,3694.9,3693.0,0.4697]
[1753450662309,0.55,3693.9,3691.7,0.8133]
[1753450662513,0.55,3693.7,3693.6,0.001]
[1753450662811,6.49062245,3693.7,3693.6,0.001]
[1753450663178,6.98602245,3693.7,3693.6,0.001]
[1753450663517,6.98602245,3693.7,3691.3,6.495]
[1753450663518,1.3528,3693.3,3689.2,0.4493]
[1753450663699,3.0,3693.6,3684.7,9.43549622]
[1753450663700,0.8028,3689.1,3684.7,9.43549622]
[1753450663899,0.55,3689.2,3684.7,9.43549622]
[1753450663900,0.55,3686.3,3684.8,0.3993]
[1753450664140,9.7638205,3688.3,3684.9,5.259]
[1753450664141,0.02708429,3687.2,3684.9,5.259]
[1753450664321,0.7664,3688.3,3684.9,5.259]
[1753450664322,0.54118429,3688.2,3685.4,2.71340219]
[1753450664520,0.54118429,3688.2,3685.5,0.02713336]
[1753450664721,0.4736,3688.9,3685.6,11.77]
[1753450665033,0.4736,3688.9,3685.7,0.02713188]
[1753450665218,0.7911,3688.0,3685.7,6.5]
[1753450665420,0.37911,3687.9,3685.7,0.65]
[1753450665620,0.7911,3688.0,3686.7,2.71242857]
[1753450665928,0.7911,3688.8,3686.8,0.47642379]
[1753450666134,0.7911,3688.8,3687.0,2.71223216]
[1753450666350,0.4736,3689.2,3689.0,2.71075353]
[1753450666351,0.0345,3689.2,3689.0,2.71075353]
[1753450666649,0.7911,3690.5,3687.4,2.71193795]
[1753450666650,0.7911,3690.5,3690.3,2.70974336]
[1753450666824,0.75919309,3690.5,3690.4,5.8623]
[1753450667024,0.7711,3692.1,3690.5,2.70965993]
[1753450667325,0.7711,3692.1,3689.7,0.4493]
[1753450667524,0.7711,3692.1,3690.8,2.70943349]
[1753450667858,2.84716918,3692.0,3690.0,5.442]
[1753450668044,0.13858895,3692.0,3690.0,5.442]
[1753450668248,0.13858895,3692.0,3690.0,11.944]
[1753450668544,0.7711,3692.1,3690.1,0.4493]
[1753450668749,0.7711,3692.1,3690.0,6.502]
[1753450668951,3.0,3691.5,3690.5,2.7096544]
[1753450669114,0.55,3691.8,3690.1,5.438]
[1753450669315,0.55,3691.8,3690.2,0.0270988]
[1753450669516,3.7711,3692.1,3690.5,2.70961422]
[1753450669517,0.55,3691.6,3690.5,2.70961422]
[1753450669721,0.55,3691.6,3690.2,0.4763988]
[1753450670046,0.7711,3692.1,3690.2,0.4763988]
[1753450670047,3.47958778,3692.1,3691.1,2.70917694]
[1753450670247,0.7711,3692.1,3690.8,0.4493]
[1753450670452,3.0,3692.0,3691.1,2.70919442]
[1753450670634,0.7711,3692.1,3690.3,5.425]
[1753450670833,0.55,3691.0,3689.9,0.4493]
[1753450671036,0.55,3691.0,3689.5,5.423]